fUSD/lending_fUSD_20240429
["ID","MTS","AMOUNT","RATE_DAILY","PERIOD"]
[324898455,1714403455113,-566.18,0.00012869,2]
[324898457,1714403455122,-500.0,0.00012869,2]
[324898460,1714403455132,-500.0,0.00012869,2]
[324898461,1714403455141,-500.0,0.00012869,2]
[324898464,1714403455152,-229.29997394,0.00012869,2]
[324898466,1714403455161,-500.0,0.00012869,2]
[324898468,1714403455170,-500.0,0.00012869,2]
[324898470,1714403455180,-500.0,0.00012869,2]
[324898472,1714403455189,-548.16,0.00012869,2]
[324898474,1714403455198,-500.0,0.00012869,2]
[324898475,1714403455207,-500.0,0.00012869,2]
[324898478,1714403455217,-500.0,0.00012869,2]
[324898480,1714403455227,-500.0,0.00012869,2]
[324898482,1714403455236,-500.0,0.00012869,2]
[324898483,1714403455246,-500.0,0.00012869,2]
[324898486,1714403455255,-500.0,0.00012869,2]
[324898488,1714403455264,-500.0,0.00012869,2]
[324898490,1714403455274,-500.0,0.00012869,2]
[324898491,1714403455283,-500.0,0.00012869,2]
[324898493,1714403455293,-511.31,0.00012869,2]
[324898494,1714403455302,-1160.72,0.00012869,2]
[324898495,1714403455312,-500.0,0.00012869,2]
[324898496,1714403455321,-500.0,0.00012869,2]
[324898497,1714403455330,-500.0,0.00012869,2]
[324898498,1714403455339,-500.0,0.00012869,2]
[324898499,1714403455348,-506.08385729,0.00012869,2]
[324898500,1714403455357,-1128.42,0.00012869,2]
[324898502,1714403455366,-500.0,0.00012869,2]
[324898504,1714403455376,-500.0,0.00012869,2]
[324898506,1714403455385,-500.0,0.00012869,2]
[324898508,1714403455395,-500.0,0.00012869,2]
[324898510,1714403455405,-500.0,0.00012869,2]
[324898512,1714403455414,-313.01742531,0.00012869,2]
[324898514,1714403455423,-332.37,0.00012869,2]
[324898516,1714403455432,-500.0,0.00012869,2]
[324898518,1714403455441,-500.0,0.00012869,2]
[324898520,1714403455451,-500.0,0.00012869,2]
[324898522,1714403455460,-500.0,0.00012869,2]
[324898524,1714403455469,-547.58,0.00012869,2]
[324898526,1714403455479,-500.0,0.00012869,2]
[324898528,1714403455488,-528.74,0.00012869,2]
[324898530,1714403455498,-500.0,0.00012869,2]
[324898532,1714403455507,-500.0,0.00012869,2]
[324898534,1714403455517,-500.0,0.00012869,2]
[324898536,1714403455525,-207.05344252,0.00012869,2]
[324898538,1714403455535,-500.0,0.00012869,2]
[324898540,1714403455544,-500.0,0.00012869,2]
[324898542,1714403455553,-500.0,0.00012869,2]
[324898544,1714403455562,-500.0,0.00012869,2]
[324898546,1714403455571,-500.0,0.00012869,2]
[324898548,1714403455582,-500.0,0.00012869,2]
[324898550,1714403455591,-500.0,0.00012869,2]
[324898552,1714403455601,-946.08,0.00012869,2]
[324898554,1714403455610,-500.0,0.00012869,2]
[324898556,1714403455620,-500.0,0.00012869,2]
[324898559,1714403455630,-500.0,0.00012869,2]
[324898561,1714403455640,-500.0,0.00012869,2]
[324898562,1714403455649,-500.0,0.00012869,2]
[324898565,1714403455659,-500.0,0.00012869,2]
[324898567,1714403455668,-500.0,0.00012869,2]
[324898568,1714403455678,-500.0,0.00012869,2]
[324898570,1714403455687,-1427.06,0.00012869,2]
[324898572,1714403455696,-956.26,0.00012869,2]
[324898574,1714403455706,-567.04,0.00012869,2]
[324898576,1714403455714,-500.0,0.00012869,2]
[324898578,1714403455724,-500.0,0.00012869,2]
[324898580,1714403455733,-1057.43,0.00012869,2]
[324898582,1714403455743,-1689.84,0.00012869,2]
[324898584,1714403455752,-333.86378482,0.00012869,2]
[324898586,1714403455762,-500.0,0.00012869,2]
[324898588,1714403455771,-6518.37,0.00012869,2]
[324898590,1714403455781,-500.0,0.00012869,2]
[324898592,1714403455791,-500.0,0.00012869,2]
[324898594,1714403455801,-500.0,0.00012869,2]
[324898596,1714403455810,-500.0,0.00012869,2]
[324898598,1714403455820,-500.0,0.00012869,2]
[324898600,1714403455829,-500.0,0.00012869,2]
[324898602,1714403455838,-500.0,0.00012869,2]
[324898604,1714403455848,-4226.68,0.00012869,2]
[324898606,1714403455857,-540.14015187,0.00012869,2]
[324898608,1714403455867,-500.0,0.00012869,2]
[324898610,1714403455877,-969.91,0.00012869,2]
[324898612,1714403455886,-500.0,0.00012869,2]
[324898614,1714403455897,-500.0,0.00012869,2]
[324898616,1714403455907,-500.0,0.00012869,2]
[324898618,1714403455916,-500.0,0.00012869,2]
[324898620,1714403455926,-500.0,0.00012869,2]
[324898634,1714403456053,-500.0,0.00012869,2]
[324898636,1714403456065,-500.0,0.00012869,2]
[324898638,1714403456074,-9054.67,0.00012869,2]
[324898640,1714403456083,-823.63,0.00012869,2]
[324898642,1714403456092,-500.0,0.00012869,2]
[324898644,1714403456102,-994.65,0.00012869,2]
[324898646,1714403456111,-500.0,0.00012869,2]
[324898648,1714403456120,-500.0,0.00012869,2]
[324898651,1714403456130,-993.4,0.00012869,2]
[324898653,1714403456139,-1014.49,0.00012869,2]
[324898655,1714403456149,-500.0,0.00012869,2]
[324898657,1714403456159,-536.9,0.00012869,2]
[324898659,1714403456168,-500.0,0.00012869,2]
[324898661,1714403456177,-500.0,0.00012869,2]
[324898663,1714403456186,-1510.52,0.00012869,2]
[324898664,1714403456196,-507.73,0.00012869,2]
[324898667,1714403456205,-1281.18,0.00012869,2]
[324898668,1714403456214,-500.0,0.00012869,2]
[324898671,1714403456224,-500.0,0.00012869,2]
[324898673,1714403456233,-604.87,0.00012869,2]
[324898675,1714403456243,-500.0,0.00012869,2]
[324898677,1714403456252,-500.0,0.00012869,2]
[324898679,1714403456261,-500.86,0.00012869,2]
[324898681,1714403456270,-884.52,0.00012869,2]
[324898683,1714403456279,-500.0,0.00012869,2]
[324898685,1714403456288,-849.86,0.00012869,2]
[324898687,1714403456297,-500.0,0.00012869,2]
[324898689,1714403456307,-984.67,0.00012869,2]
[324898691,1714403456316,-628.04,0.00012869,2]
[324898693,1714403456325,-500.0,0.00012869,2]
[324898695,1714403456335,-500.0,0.00012869,2]
[324898697,1714403456344,-527.3,0.00012869,2]
[324898699,1714403456353,-1607.14,0.00012869,2]
[324898701,1714403456362,-500.0,0.00012869,2]
[324898702,1714403456371,-517.5,0.00012869,2]
[324898705,1714403456381,-840.42,0.00012869,2]
[324898706,1714403456390,-500.0,0.00012869,2]
[324898708,1714403456400,-500.0,0.00012869,2]
[324898710,1714403456408,-500.0,0.00012869,2]
[324898712,1714403456418,-500.0,0.00012869,2]
[324898714,1714403456427,-500.0,0.00012869,2]
[324898717,1714403456437,-500.0,0.00012869,2]
[324898719,1714403456447,-716.39,0.00012869,2]
[324898720,1714403456456,-500.0,0.00012869,2]
[324898723,1714403456466,-500.0,0.00012869,2]
[324898724,1714403456475,-500.0,0.00012869,2]
[324898727,1714403456485,-520.09,0.00012869,2]
[324898728,1714403456494,-881.05,0.00012869,2]
[324898731,1714403456504,-500.0,0.00012869,2]
[324898733,1714403456514,-500.0,0.00012869,2]
[324898735,1714403456523,-1026.05,0.00012869,2]
[324898737,1714403456532,-500.0,0.00012869,2]
[324898739,1714403456541,-1218.75,0.00012869,2]
[324898741,1714403456550,-850.41,0.00012869,2]
[324898743,1714403456559,-500.0,0.00012869,2]
[324898745,1714403456570,-500.0,0.00012869,2]
[324898746,1714403456580,-870.68,0.00012869,2]
[324898747,1714403456589,-500.0,0.00012869,2]
[324898748,1714403456599,-1317.16,0.00012869,2]
[324898749,1714403456609,-707.58,0.00012869,2]
[324898750,1714403456619,-500.0,0.00012869,2]
[324898751,1714403456630,-535.83,0.00012869,2]
[324898752,1714403456640,-615.64,0.00012869,2]
[324898754,1714403456650,-500.0,0.00012869,2]
[324898756,1714403456660,-785.03,0.00012869,2]
[324898758,1714403456670,-2442.61,0.00012869,2]
[324898760,1714403456679,-500.0,0.00012869,2]
[324898762,1714403456689,-837.98,0.00012869,2]
[324898764,1714403456699,-6388.0,0.00012869,2]
[324898766,1714403456708,-500.0,0.00012869,2]
[324898768,1714403456719,-418.57,0.00012869,2]
[324898770,1714403456728,-840.44,0.00012869,2]
[324898772,1714403456737,-907.95,0.00012869,2]
[324898774,1714403456747,-1423.15,0.00012869,2]
[324898776,1714403456757,-452.03,0.00012869,2]
[324898778,1714403456766,-500.0,0.00012869,2]
[324898780,1714403456775,-576.65,0.00012869,2]
[324898782,1714403456785,-589.65,0.00012869,2]
[324898784,1714403456794,-535.05,0.00012869,2]
[324898786,1714403456803,-2660.92,0.00012869,2]
[324898788,1714403456812,-500.0,0.00012869,2]
[324898790,1714403456821,-881.17,0.00012869,2]
[324898792,1714403456830,-500.0,0.00012869,2]
[324898793,1714403456839,-2380.37,0.00012869,2]
[324898796,1714403456848,-1352.97,0.00012869,2]
[324898797,1714403456857,-500.0,0.00012869,2]
[324898800,1714403456867,-664.22,0.00012869,2]
[324898801,1714403456876,-500.0,0.00012869,2]
[324898803,1714403456886,-1079.67,0.00012869,2]
[324898805,1714403456895,-500.0,0.00012869,2]
[324898808,1714403456905,-500.0,0.00012869,2]
[324898810,1714403456914,-797.4,0.00012869,2]
[324898812,1714403456923,-500.0,0.00012869,2]
[324898814,1714403456932,-500.0,0.00012869,2]
[324898816,1714403456941,-500.0,0.00012869,2]
[324898817,1714403456950,-843.94,0.00012869,2]
[324898820,1714403456960,-190.87395743,0.00012869,2]
[324898822,1714403456971,-1466.11,0.00012869,2]
[324898824,1714403456986,-1356.02,0.00012869,2]
[324898826,1714403456995,-500.0,0.00012869,2]
[324898827,1714403457005,-500.0,0.00012869,2]
[324898830,1714403457014,-500.0,0.00012869,2]
[324898832,1714403457026,-553.9,0.00012869,2]
[324898833,1714403457036,-961.38,0.00012869,2]
[324898836,1714403457053,-500.0,0.00012869,2]
[324898838,1714403457063,-1012.69,0.00012869,2]
[324898839,1714403457072,-500.0,0.00012869,2]
[324898841,1714403457083,-500.0,0.00012869,2]
[324898843,1714403457091,-510.53,0.00012869,2]
[324898845,1714403457101,-2260.0,0.00012869,2]
[324898847,1714403457110,-1149.87,0.00012869,2]
[324898849,1714403457119,-692.58,0.00012869,2]
[324898851,1714403457130,-500.0,0.00012869,2]
[324898853,1714403457139,-630.6,0.00012869,2]
[324898855,1714403457149,-500.0,0.00012869,2]
[324898857,1714403457158,-500.0,0.00012869,2]
[324898859,1714403457168,-828.45,0.00012869,2]
[324898861,1714403457177,-818.16,0.00012869,2]
[324898863,1714403457187,-204.2568856,0.00012869,2]
[324898865,1714403457197,-1568.2,0.00012869,2]
[324898867,1714403457206,-1410.54,0.00012869,2]
[324898869,1714403457215,-561.51,0.00012869,2]
[324898871,1714403457225,-332.16783564,0.00012869,2]
[324898873,1714403457234,-500.0,0.00012869,2]
[324898875,1714403457244,-1011.32,0.00012869,2]
[324898877,1714403457253,-1308.07,0.00012869,2]
[324898879,1714403457263,-1894.29,0.00012869,2]
[324898881,1714403457272,-500.0,0.00012869,2]
[324898883,1714403457281,-500.0,0.00012869,2]
[324898885,1714403457290,-500.0,0.00012869,2]
[324898887,1714403457299,-500.0,0.0001287,2]
[324898889,1714403457308,-500.0,0.0001287,2]
[324898891,1714403457317,-500.0,0.0001287,2]
[324898893,1714403457326,-500.0,0.0001287,2]
[324898895,1714403457335,-500.0,0.0001287,2]
[324898897,1714403457345,-500.0,0.0001287,2]
[324898899,1714403457354,-500.0,0.0001287,2]
[324898901,1714403457363,-500.0,0.0001287,2]
[324898903,1714403457372,-500.0,0.0001287,2]
[324898905,1714403457386,-500.0,0.0001287,2]
[324898907,1714403457395,-500.0,0.0001287,2]
[324898908,1714403457404,-500.0,0.0001287,2]
[324898910,1714403457413,-500.0,0.0001287,2]
[324898912,1714403457424,-542.65,0.0001287,2]
[324898914,1714403457433,-500.0,0.0001287,2]
[324898916,1714403457442,-500.0,0.0001287,2]
[324898918,1714403457452,-500.0,0.0001287,2]
[324898920,1714403457461,-500.0,0.0001287,2]
[324898922,1714403457471,-500.0,0.0001287,2]
[324898924,1714403457480,-500.0,0.0001287,2]
[324898926,1714403457490,-500.0,0.0001287,2]
[324898929,1714403457499,-500.0,0.0001287,2]
[324898930,1714403457508,-500.0,0.0001287,2]
[324898933,1714403457518,-500.0,0.0001287,2]
[324898934,1714403457529,-500.0,0.0001287,2]
[324898936,1714403457538,-500.0,0.0001287,2]
[324898939,1714403457547,-500.0,0.0001287,2]
[324898941,1714403457558,-500.0,0.0001287,2]
[324898942,1714403457568,-500.0,0.0001287,2]
[324898944,1714403457578,-500.0,0.0001287,2]
[324898947,1714403457587,-526.54,0.0001287,2]
[324898949,1714403457597,-500.0,0.0001287,2]
[324898950,1714403457607,-500.0,0.0001287,2]
[324898953,1714403457616,-701.08,0.0001287,2]
[324898955,1714403457628,-552.63,0.0001287,2]
[324898957,1714403457637,-597.36,0.0001287,2]
[324898959,1714403457646,-500.0,0.0001287,2]
[324898961,1714403457655,-740.97,0.0001287,2]
[324898963,1714403457664,-500.0,0.0001287,2]
[324898965,1714403457673,-500.0,0.0001287,2]
[324898967,1714403457682,-500.0,0.0001287,2]
[324898969,1714403457691,-500.0,0.0001287,2]
[324898970,1714403457700,-933.78,0.0001287,2]
[324898972,1714403457710,-500.0,0.0001287,2]
[324898974,1714403457719,-500.0,0.0001287,2]
[324898984,1714403457838,-967.57,0.0001287,2]
[324898985,1714403457848,-500.0,0.0001287,2]
[324898986,1714403457857,-374.40456011,0.0001287,2]
[324898988,1714403457867,-500.0,0.0001287,2]
[324898990,1714403457878,-500.0,0.0001287,2]
[324898992,1714403457887,-500.0,0.0001287,2]
[324898994,1714403457896,-500.0,0.0001287,2]
[324898995,1714403457906,-849.61,0.0001287,2]
[324898997,1714403457916,-500.0,0.0001287,2]
[324898999,1714403457925,-500.0,0.0001287,2]
[324899001,1714403457935,-500.0,0.0001287,2]
[324899004,1714403457944,-500.0,0.0001287,2]
[324899006,1714403457953,-500.0,0.0001287,2]
[324899007,1714403457963,-693.94,0.0001287,2]
[324899010,1714403457978,-500.0,0.0001287,2]
[324899011,1714403457987,-500.0,0.0001287,2]
[324899014,1714403457997,-500.0,0.0001287,2]
[324899016,1714403458007,-500.0,0.0001287,2]
[324899017,1714403458016,-847.39,0.0001287,2]
[324899020,1714403458027,-596.9,0.0001287,2]
[324899022,1714403458036,-500.0,0.0001287,2]
[324899024,1714403458045,-829.49,0.0001287,2]
[324899025,1714403458055,-500.0,0.0001287,2]
[324899027,1714403458064,-500.0,0.0001287,2]
[324899029,1714403458074,-500.0,0.0001287,2]
[324899031,1714403458083,-500.0,0.0001287,2]
[324899033,1714403458092,-500.0,0.0001287,2]
[324899035,1714403458102,-500.0,0.0001287,2]
[324899037,1714403458112,-500.0,0.0001287,2]
[324899039,1714403458121,-500.0,0.0001287,2]
[324899041,1714403458131,-500.0,0.0001287,2]
[324899043,1714403458140,-500.0,0.0001287,2]
[324899045,1714403458150,-500.0,0.0001287,2]
[324899048,1714403458160,-522.07,0.0001287,2]
[324899049,1714403458170,-977.85,0.0001287,2]
[324899051,1714403458179,-500.0,0.0001287,2]
[324899053,1714403458188,-512.86627891,0.0001287,2]
[324899055,1714403458197,-986.25,0.0001287,2]
[324899057,1714403458207,-646.37,0.0001287,2]
[324899059,1714403458217,-500.0,0.0001287,2]
[324899061,1714403458227,-611.45,0.0001287,2]
[324899063,1714403458236,-500.0,0.0001287,2]
[324899066,1714403458246,-500.0,0.0001287,2]
[324899067,1714403458256,-500.0,0.0001287,2]
[324899070,1714403458267,-500.0,0.0001287,2]
[324899072,1714403458276,-500.0,0.0001287,2]
[324899073,1714403458286,-1009.7,0.0001287,2]
[324899075,1714403458294,-500.0,0.0001287,2]
[324899077,1714403458304,-500.0,0.0001287,2]
[324899080,1714403458314,-530.48,0.0001287,2]
[324899081,1714403458323,-500.0,0.0001287,2]
[324899083,1714403458332,-500.0,0.0001287,2]
[324899086,1714403458342,-500.0,0.0001287,2]
[324899088,1714403458352,-500.0,0.0001287,2]
[324899090,1714403458360,-500.0,0.0001287,2]
[324899091,1714403458369,-500.0,0.0001287,2]
[324899094,1714403458380,-863.88,0.0001287,2]
[324899095,1714403458390,-500.0,0.0001287,2]
[324899098,1714403458400,-500.0,0.0001287,2]
[324899100,1714403458409,-500.0,0.0001287,2]
[324899102,1714403458418,-500.0,0.0001287,2]
[324899103,1714403458427,-500.0,0.0001287,2]
[324899105,1714403458438,-500.0,0.0001287,2]
[324899107,1714403458447,-500.0,0.0001287,2]
[324899109,1714403458456,-804.99,0.0001287,2]
[324899112,1714403458466,-500.0,0.0001287,2]
[324899114,1714403458476,-500.0,0.0001287,2]
[324899116,1714403458485,-500.0,0.0001287,2]
[324899118,1714403458495,-500.0,0.0001287,2]
[324899120,1714403458504,-500.0,0.0001287,2]
[324899121,1714403458514,-998.88,0.0001287,2]
[324899124,1714403458523,-660.79,0.0001287,2]
[324899125,1714403458532,-500.0,0.0001287,2]
[324899128,1714403458542,-1047.15,0.0001287,2]
[324899130,1714403458552,-500.0,0.0001287,2]
[324899132,1714403458561,-535.91,0.0001287,2]
[324899134,1714403458571,-500.0,0.0001287,2]
[324899135,1714403458580,-4242.74,0.0001287,2]
[324899137,1714403458589,-500.0,0.0001287,2]
[324899140,1714403458598,-500.0,0.0001287,2]
[324899141,1714403458607,-1137.34,0.0001287,2]
[324899143,1714403458617,-500.0,0.0001287,2]
[324899146,1714403458627,-500.0,0.0001287,2]
[324899147,1714403458636,-859.13,0.0001287,2]
[324899149,1714403458646,-552.37,0.0001287,2]
[324899151,1714403458655,-567.07380414,0.0001287,2]
[324899154,1714403458664,-1523.5,0.0001287,2]
[324899156,1714403458673,-500.0,0.0001287,2]
[324899157,1714403458683,-819.0,0.0001287,2]
[324899160,1714403458692,-872.25,0.0001287,2]
[324899162,1714403458701,-500.0,0.0001287,2]
[324899164,1714403458710,-500.0,0.0001287,2]
[324899166,1714403458720,-1052.64,0.0001287,2]
[324899168,1714403458730,-500.0,0.0001287,2]
[324899169,1714403458739,-500.0,0.0001287,2]
[324899171,1714403458748,-500.0,0.0001287,2]
[324899173,1714403458758,-500.0,0.0001287,2]
[324899176,1714403458768,-500.0,0.0001287,2]
[324899178,1714403458777,-500.0,0.0001287,2]
[324899180,1714403458787,-500.0,0.0001287,2]
[324899181,1714403458796,-500.0,0.0001287,2]
[324899183,1714403458806,-534.16,0.0001287,2]
[324899185,1714403458816,-500.0,0.0001287,2]
[324899188,1714403458826,-500.0,0.0001287,2]
[324899189,1714403458835,-500.0,0.0001287,2]
[324899191,1714403458845,-500.0,0.0001287,2]
[324899194,1714403458855,-500.0,0.0001287,2]
[324899196,1714403458864,-662.98,0.0001287,2]
[324899198,1714403458874,-1000.0,0.00012877,2]
[324899200,1714403458883,-1079.0,0.00012877,2]
[324899201,1714403458893,-150.0,0.00012881,2]
[324899204,1714403458903,-10000.0,0.00012888,2]
[324899205,1714403458913,-2046.17796797,0.00012889,2]
[324899206,1714403458923,-250000.0,0.0001289,2]
[324899207,1714403458932,-500.0,0.00012895,2]
[324899208,1714403458941,-351723.31699277,0.000129,2]
[324899209,1714403458950,-173.8775067,0.000129,2]
[324899210,1714403458959,-1500.0,0.000129,2]
[324899211,1714403458969,-1500.0,0.000129,2]
[324899213,1714403458982,-1500.0,0.000129,2]
[324899215,1714403458992,-1500.0,0.000129,2]
[324899217,1714403459002,-1500.0,0.000129,2]
[324899219,1714403459012,-1500.0,0.000129,2]
[324899221,1714403459023,-1458.13,0.000129,2]
[324899224,1714403459044,-1500.0,0.000129,2]
[324899226,1714403459057,-1000.0,0.000129,2]
[324899228,1714403459066,-151.0,0.000129,2]
[324899230,1714403459076,-184.201662,0.000129,2]
[324899232,1714403459085,-151.0,0.000129,2]
[324899234,1714403459094,-151.0,0.000129,2]
[324899236,1714403459103,-151.0,0.000129,2]
[324899238,1714403459113,-151.0,0.000129,2]
[324899240,1714403459122,-151.0,0.000129,2]
[324899242,1714403459132,-151.0,0.000129,2]
[324899245,1714403459142,-151.0,0.000129,2]
[324899246,1714403459152,-151.0,0.000129,2]
[324899248,1714403459162,-151.0,0.000129,2]
[324899250,1714403459171,-151.0,0.000129,2]
[324899252,1714403459181,-151.0,0.000129,2]
[324899254,1714403459190,-151.0,0.000129,2]
[324899256,1714403459200,-151.0,0.000129,2]
[324899259,1714403459210,-151.0,0.000129,2]
[324899260,1714403459219,-151.0,0.000129,2]
[324899263,1714403459228,-151.0,0.000129,2]
[324899264,1714403459238,-151.0,0.000129,2]
[324899266,1714403459247,-198.461402,0.000129,2]
[324899268,1714403459257,-151.0,0.000129,2]
[324899270,1714403459266,-209.217184,0.000129,2]
[324899272,1714403459275,-209.217184,0.000129,2]
[324899274,1714403459285,-151.0,0.000129,2]
[324899276,1714403459295,-151.611891,0.000129,2]
[324899278,1714403459305,-151.0,0.000129,2]
[324899280,1714403459315,-259.209583,0.000129,2]
[324899282,1714403459325,-151.0,0.000129,2]
[324899284,1714403459334,-151.0,0.000129,2]
[324899286,1714403459344,-266.941554,0.000129,2]
[324899288,1714403459353,-217.17006798,0.000129,2]
[324899290,1714403459363,-717.82475822,0.000129,2]
[324899292,1714403459372,-249.999395,0.000129,2]
[324899294,1714403459386,-151.0,0.000129,2]
[324899296,1714403459396,-236.80841902,0.000129,2]
[324899309,1714403459406,-249.999395,0.000129,2]
[324899311,1714403459518,-275.352984,0.000129,2]
[324899313,1714403459528,-151.0,0.000129,2]
[324899315,1714403459538,-151.0,0.000129,2]
[324899317,1714403459547,-264.737216,0.000129,2]
[324899319,1714403459556,-151.0,0.000129,2]
[324899321,1714403459566,-151.0,0.000129,2]
[324899323,1714403459575,-151.0,0.000129,2]
[324899325,1714403459584,-151.0,0.000129,2]
[324899327,1714403459594,-151.0,0.000129,2]
[324899329,1714403459603,-151.0,0.000129,2]
[324899331,1714403459612,-4291.21678003,0.0001298,2]
[324899333,1714403459622,-668.3003852,0.0001299,2]
[324899335,1714403459634,-334.1501926,0.0001299,2]
[324899337,1714403459643,-178.35768846,0.00012999,2]
[324899339,1714403459652,-2900.4611079,0.00012999,2]
[324899341,1714403459662,-9271.52301659,0.00012999,2]
[324899343,1714403459671,-245048.89570967,0.00013,2]
[324899385,1714403460125,-12260.56224255,0.00013,2]
[324899390,1714403460166,-12640.00000012,0.00013,2]
[324899393,1714403460185,-15842.28837999,0.00013,2]
[324899396,1714403460205,-1083.354384,0.00013,2]
[324899399,1714403460222,-943.296,0.00013,2]
[324899488,1714403461451,-1460.77655516,0.00011948,2]
[324899490,1714403461461,-500.0,0.00012047,2]
[324899492,1714403461471,-845.21,0.00012321,2]
[324899494,1714403461480,-500.0,0.00012321,2]
[324899496,1714403461490,-196.22365688,0.00012495,2]
[324899498,1714403461500,-845.21,0.00012595,2]
[324899500,1714403461509,-500.0,0.00012595,2]
[324899502,1714403461519,-845.21,0.00012869,2]
[324899504,1714403461528,-12570.72518709,0.00013,2]
[324899641,1714403462895,-458735.49971685,0.00013,2]
[324899643,1714403462905,-1748.09424184,0.00013,2]
[324899645,1714403462914,-4378896.52446499,0.00013,2]
[324899650,1714403462961,-750.0,0.00013,2]
[324899652,1714403462973,-327.43419736,0.00013,2]
[324899655,1714403462988,-908.51,0.00013,2]
[324899666,1714403463088,-500.0,0.00012869,2]
[324899668,1714403463097,-2654.26748,0.00013,2]
[324899670,1714403463109,-12602.235099,0.00013,2]
[324899672,1714403463120,-218634.57872806,0.00013,2]
[324899674,1714403463131,-2000.0,0.00013,3]
[324899676,1714403463140,-1608.0,0.00013,3]
[324899678,1714403463150,-500.0,0.00013,2]
[324899680,1714403463159,-96557.42127191,0.00013,2]
[324899685,1714403463195,-4328.499685,0.00013,2]
[324899687,1714403463206,-438.46228263,0.00013,2]
[324899689,1714403463218,-28245.02492057,0.00013,2]
[324899691,1714403463229,-127479.47304621,0.00013,2]
[324900614,1714403528941,287.87,9.262e-05,2]
[324900624,1714403774757,6456.53305103,9.262e-05,2]
[324900636,1714404015659,273.47,9.484e-05,2]
[324900677,1714404583441,268.64,9.1e-05,2]
[324900702,1714404632754,-3378.55,9.967e-05,2]
[324900705,1714404632773,-287.87646049,9.967e-05,2]
[324900887,1714404638801,-748.74114805,9.967e-05,2]
[324900888,1714404638815,-11561.11514084,9.968e-05,2]
[324900889,1714404638825,-914.07371111,9.97e-05,2]
[324901052,1714404640451,-760.01039041,9.97e-05,2]
[324901055,1714404640462,-738.70204546,9.97e-05,2]
[324901057,1714404640477,-1415.55102347,9.97e-05,2]
[324901059,1714404640488,-391.35989989,9.97e-05,2]
[324901062,1714404640499,-318.055,9.97e-05,2]
[324901069,1714404640563,-346.73218344,9.97e-05,2]
[324901071,1714404640575,-415.08850854,9.97e-05,2]
[324901077,1714404640620,-668.16681472,9.97e-05,2]
[324901103,1714404640856,-41733.12500662,9.97e-05,2]
[324901106,1714404640865,-258.38328877,0.0001,2]
[324901108,1714404640875,-2083.23170461,0.00010982,2]
[324901378,1714404643401,-1258.394,0.00010982,2]
[324901382,1714404643412,-670.17128475,0.00010982,2]
[324901386,1714404643424,-1702.41490652,0.00010982,2]
[324901405,1714404643514,-1272.5798,0.00010982,2]
[324901410,1714404643526,-2433.56830412,0.00010982,2]
[324901412,1714404643536,-400.0,0.00011,2]
[324901414,1714404643545,-2450.0,0.00011,3]